fUSD/lending_fUSD_20260326
["ID","MTS","AMOUNT","RATE_DAILY","PERIOD"]
[418929938,1774567893832,-753.407301,0.00044932,120]
[418929939,1774567893841,-753.407301,0.00044932,120]
[418929940,1774567893850,-753.407301,0.00044932,120]
[418929941,1774567893859,-753.407301,0.00044932,120]
[418929942,1774567893869,-158.90086,0.00044932,120]
[418929943,1774567893878,-753.407301,0.00044932,120]
[418929944,1774567893887,-753.407301,0.00044932,120]
[418929945,1774567893898,-158.90086,0.00044932,120]
[418929946,1774567893907,-753.407299,0.00044932,120]
[418929947,1774567893916,-158.90086,0.00044932,120]
[418929948,1774567893926,-158.90086,0.00044932,120]
[418929949,1774567893935,-158.90086,0.00044932,120]
[418929950,1774567893945,-158.90086,0.00044932,120]
[418929951,1774567893955,-158.90086,0.00044932,120]
[418929952,1774567893965,-158.90086,0.00044932,120]
[418929953,1774567893975,-158.90086,0.00044932,120]
[418929954,1774567893985,-158.90086,0.00044932,120]
[418929955,1774567893994,-158.90086,0.00044932,120]
[418929956,1774567894004,-158.90086,0.00044932,120]
[418929957,1774567894014,-158.90086,0.00044932,120]
[418929958,1774567894024,-158.90086,0.00044932,120]
[418929959,1774567894034,-158.90086,0.00044932,120]
[418929960,1774567894043,-158.90086,0.00044932,120]
[418929961,1774567894053,-158.90086,0.00044932,120]
[418929962,1774567894062,-158.90086,0.00044932,120]
[418929963,1774567894072,-158.90086,0.00044932,120]
[418929964,1774567894082,-158.90085,0.00044932,120]
[418929965,1774567894092,-151.0,0.00044932,120]
[418929966,1774567894101,-151.0,0.00044932,120]
[418929967,1774567894111,-259.088201,0.00044932,120]
[418929968,1774567894120,-151.0,0.00044932,120]
[418929969,1774567894130,-151.0,0.00044932,120]
[418929970,1774567894139,-301.783037,0.00044932,120]
[418929971,1774567894148,-151.0,0.00044932,120]
[418929972,1774567894157,-151.0,0.00044932,120]
[418929973,1774567894166,-151.0,0.00044932,120]
[418929974,1774567894176,-151.0,0.00044932,120]
[418929975,1774567894186,-160.997149,0.00044932,120]
[418929976,1774567894196,-248.100121,0.00044932,120]
[418929977,1774567894207,-248.100121,0.00044932,120]
[418929978,1774567894216,-248.100121,0.00044932,120]
[418929979,1774567894225,-248.100121,0.00044932,120]
[418929980,1774567894235,-545.389725,0.00044932,120]
[418929981,1774567894244,-248.100121,0.00044932,120]
[418929982,1774567894254,-545.389725,0.00044932,120]
[418929983,1774567894263,-248.100121,0.00044932,120]
[418929984,1774567894272,-545.389725,0.00044932,120]
[418929985,1774567894281,-248.100121,0.00044932,120]
[418929986,1774567894291,-545.389725,0.00044932,120]
[418929987,1774567894300,-248.100121,0.00044932,120]
[418929988,1774567894310,-545.389725,0.00044932,120]
[418929989,1774567894319,-248.100121,0.00044932,120]
[418929990,1774567894329,-545.389725,0.00044932,120]
[418929991,1774567894338,-248.100121,0.00044932,120]
[418929992,1774567894347,-545.389725,0.00044932,120]
[418929993,1774567894357,-248.100121,0.00044932,120]
[418929994,1774567894366,-545.389725,0.00044932,120]
[418929995,1774567894375,-248.100121,0.00044932,120]
[418929996,1774567894384,-248.100121,0.00044932,120]
[418929997,1774567894393,-545.389725,0.00044932,120]
[418929998,1774567894403,-248.100121,0.00044932,120]
[418929999,1774567894412,-248.100121,0.00044932,120]
[418930000,1774567894421,-545.389725,0.00044932,120]
[418930001,1774567894431,-248.100121,0.00044932,120]
[418930002,1774567894440,-545.389725,0.00044932,120]
[418930003,1774567894449,-248.100121,0.00044932,120]
[418930004,1774567894459,-545.389725,0.00044932,120]
[418930005,1774567894468,-248.100121,0.00044932,120]
[418930006,1774567894477,-545.389725,0.00044932,120]
[418930007,1774567894487,-545.389725,0.00044932,120]
[418930008,1774567894496,-248.100121,0.00044932,120]
[418930009,1774567894505,-545.389725,0.00044932,120]
[418930010,1774567894514,-248.100121,0.00044932,120]
[418930011,1774567894523,-151.0,0.00044932,120]
[418930012,1774567894532,-545.389725,0.00044932,120]
[418930013,1774567894541,-151.0,0.00044932,120]
[418930014,1774567894550,-545.389725,0.00044932,120]
[418930015,1774567894559,-151.0,0.00044932,120]
[418930016,1774567894568,-545.389725,0.00044932,120]
[418930017,1774567894577,-151.0,0.00044932,120]
[418930018,1774567894586,-545.389725,0.00044932,120]
[418930019,1774567894595,-151.0,0.00044932,120]
[418930020,1774567894604,-545.389734,0.00044932,120]
[418930021,1774567894613,-272.485983,0.00044932,120]
[418930022,1774567894623,-151.0,0.00044932,2]
[418930023,1774567894632,-151.0,0.00044932,2]
[418930024,1774567894641,-151.0,0.00044932,2]
[418930025,1774567894651,-151.0,0.00044932,2]
[418930026,1774567894660,-151.0,0.00044932,2]
[418930027,1774567894669,-151.0,0.00044932,2]
[418930028,1774567894679,-151.0,0.00044932,2]
[418930029,1774567894688,-151.0,0.00044932,2]
[418930030,1774567894698,-151.0,0.00044932,2]
[418930031,1774567894708,-151.0,0.00044932,2]
[418930032,1774567894717,-205.616263,0.00044932,2]
[418930033,1774567894726,-151.0,0.00044932,7]
[418930034,1774567894735,-151.0,0.00044932,7]
[418930035,1774567894745,-151.0,0.00044932,7]
[418930036,1774567894754,-151.0,0.00044932,7]
[418930037,1774567894763,-151.0,0.00044932,7]
[418930038,1774567894772,-244.468185,0.00044932,7]
[418930039,1774567894781,-151.0,0.00044932,120]
[418930040,1774567894791,-151.0,0.00044932,120]
[418930041,1774567894799,-236.163998,0.00044932,120]
[418930042,1774567894809,-168.536693,0.00044932,120]
[418930043,1774567894819,-168.536693,0.00044932,120]
[418930044,1774567894828,-168.536693,0.00044932,120]
[418930045,1774567894837,-168.536693,0.00044932,120]
[418930046,1774567894846,-1855.192483,0.00044932,120]
[418930047,1774567894856,-1855.192483,0.00044932,120]
[418930048,1774567894865,-1855.192483,0.00044932,120]
[418930049,1774567894874,-1855.192483,0.00044932,120]
[418930050,1774567894883,-168.536693,0.00044932,120]
[418930051,1774567894892,-1855.192483,0.00044932,120]
[418930052,1774567894902,-168.536693,0.00044932,120]
[418930053,1774567894911,-1855.192483,0.00044932,120]
[418930054,1774567894920,-153.19344,0.00044932,120]
[418930055,1774567894930,-209.832024,0.00044932,120]
[418930056,1774567894939,-168.536693,0.00044932,120]
[418930057,1774567894949,-1855.192483,0.00044932,120]
[418930058,1774567894958,-209.832024,0.00044932,120]
[418930059,1774567894968,-168.536693,0.00044932,120]
[418930060,1774567894977,-1855.192483,0.00044932,120]
[418930061,1774567894987,-209.832024,0.00044932,120]
[418930062,1774567894996,-168.536693,0.00044932,120]
[418930063,1774567895005,-1855.192483,0.00044932,120]
[418930064,1774567895015,-209.832024,0.00044932,120]
[418930065,1774567895024,-168.536693,0.00044932,120]
[418930066,1774567895033,-1855.192483,0.00044932,120]
[418930067,1774567895043,-209.832024,0.00044932,120]
[418930068,1774567895053,-168.536693,0.00044932,120]
[418930069,1774567895064,-1855.192483,0.00044932,120]
[418930070,1774567895074,-209.832024,0.00044932,120]
[418930071,1774567895084,-168.536693,0.00044932,120]
[418930072,1774567895093,-1855.192483,0.00044932,120]
[418930073,1774567895103,-209.832024,0.00044932,120]
[418930074,1774567895112,-168.536693,0.00044932,120]
[418930075,1774567895122,-1855.192483,0.00044932,120]
[418930076,1774567895132,-209.832024,0.00044932,120]
[418930077,1774567895142,-168.536693,0.00044932,120]
[418930078,1774567895151,-1855.192483,0.00044932,120]
[418930079,1774567895161,-209.832024,0.00044932,120]
[418930080,1774567895170,-168.536693,0.00044932,120]
[418930081,1774567895179,-1855.192483,0.00044932,120]
[418930082,1774567895191,-168.536693,0.00044932,120]
[418930083,1774567895201,-1855.192483,0.00044932,120]
[418930084,1774567895211,-209.832024,0.00044932,120]
[418930085,1774567895221,-168.536693,0.00044932,120]
[418930086,1774567895232,-1855.192483,0.00044932,120]
[418930087,1774567895241,-209.832024,0.00044932,120]
[418930088,1774567895251,-168.536693,0.00044932,120]
[418930089,1774567895260,-1855.192483,0.00044932,120]
[418930090,1774567895269,-209.832024,0.00044932,120]
[418930091,1774567895278,-151.0,0.00044932,120]
[418930092,1774567895287,-168.536693,0.00044932,120]
[418930093,1774567895297,-165.862962,0.00044932,120]
[418930094,1774567895306,-1855.192483,0.00044932,120]
[418930095,1774567895315,-209.832024,0.00044932,120]
[418930096,1774567895324,-168.536689,0.00044932,120]
[418930097,1774567895334,-1855.192483,0.00044932,120]
[418930098,1774567895344,-209.832024,0.00044932,120]
[418930099,1774567895353,-209.832024,0.00044932,120]
[418930100,1774567895362,-209.832024,0.00044932,120]
[418930101,1774567895371,-209.832024,0.00044932,120]
[418930102,1774567895381,-3656.582804,0.00044932,14]
[418930103,1774567895390,-209.832024,0.00044932,120]
[418930104,1774567895399,-3656.582804,0.00044932,14]
[418930105,1774567895408,-209.832024,0.00044932,120]
[418930106,1774567895418,-3656.582804,0.00044932,14]
[418930107,1774567895428,-209.832016,0.00044932,120]
[418930108,1774567895437,-3656.582804,0.00044932,14]
[418930109,1774567895446,-3656.582804,0.00044932,14]
[418930110,1774567895615,-3656.582804,0.00044932,14]
[418930111,1774567895626,-3656.582804,0.00044932,14]
[418930112,1774567895637,-3656.582804,0.00044932,14]
[418930113,1774567895647,-3656.582804,0.00044932,14]
[418930114,1774567895657,-3656.582804,0.00044932,14]
[418930115,1774567895667,-3656.582804,0.00044932,14]
[418930116,1774567895677,-3656.582804,0.00044932,14]
[418930117,1774567895686,-3656.582804,0.00044932,14]
[418930118,1774567895695,-3656.582804,0.00044932,14]
[418930119,1774567895706,-3656.582804,0.00044932,14]
[418930120,1774567895717,-3656.582804,0.00044932,14]
[418930121,1774567895726,-3656.582804,0.00044932,14]
[418930122,1774567895735,-3656.582804,0.00044932,14]
[418930123,1774567895746,-3656.582804,0.00044932,14]
[418930124,1774567895756,-3656.582808,0.00044932,14]
[418930125,1774567895765,-1627.972551,0.00044932,120]
[418930126,1774567895774,-1627.972551,0.00044932,120]
[418930127,1774567895783,-1627.972551,0.00044932,120]
[418930128,1774567895792,-1627.972551,0.00044932,120]
[418930129,1774567895802,-1627.972551,0.00044932,120]
[418930130,1774567895811,-1627.972551,0.00044932,120]
[418930131,1774567895820,-1627.972551,0.00044932,120]
[418930132,1774567895829,-1627.972551,0.00044932,120]
[418930133,1774567895838,-1627.972551,0.00044932,120]
[418930134,1774567895848,-1627.972551,0.00044932,120]
[418930135,1774567895857,-1627.972551,0.00044932,120]
[418930136,1774567895867,-1627.972551,0.00044932,120]
[418930137,1774567895876,-1627.972551,0.00044932,120]
[418930138,1774567895885,-1627.972551,0.00044932,120]
[418930139,1774567895895,-1627.972551,0.00044932,120]
[418930140,1774567895904,-1627.972551,0.00044932,120]
[418930141,1774567895913,-1627.972551,0.00044932,120]
[418930142,1774567895922,-1627.972551,0.00044932,120]
[418930143,1774567895931,-1627.972551,0.00044932,120]
[418930144,1774567895940,-1627.972559,0.00044932,120]
[418930145,1774567895950,-170.542753,0.00044932,120]
[418930146,1774567895959,-170.542753,0.00044932,120]
[418930147,1774567895968,-170.542753,0.00044932,120]
[418930148,1774567895977,-151.0,0.00044932,120]
[418930149,1774567895986,-170.542753,0.00044932,120]
[418930150,1774567895995,-151.0,0.00044932,120]
[418930151,1774567896004,-170.542753,0.00044932,120]
[418930152,1774567896014,-151.0,0.00044932,120]
[418930153,1774567896023,-170.542753,0.00044932,120]
[418930154,1774567896032,-151.0,0.00044932,120]
[418930155,1774567896042,-170.542753,0.00044932,120]
[418930156,1774567896052,-151.0,0.00044932,120]
[418930157,1774567896062,-170.542753,0.00044932,120]
[418930158,1774567896072,-151.0,0.00044932,120]
[418930159,1774567896082,-170.542753,0.00044932,120]
[418930160,1774567896091,-151.0,0.00044932,120]
[418930161,1774567896101,-170.542753,0.00044932,120]
[418930162,1774567896110,-170.542753,0.00044932,120]
[418930163,1774567896120,-151.0,0.00044932,120]
[418930164,1774567896129,-170.542753,0.00044932,120]
[418930165,1774567896139,-151.0,0.00044932,120]
[418930166,1774567896149,-170.542753,0.00044932,120]
[418930167,1774567896158,-170.542753,0.00044932,120]
[418930168,1774567896168,-151.0,0.00044932,120]
[418930169,1774567896178,-170.542753,0.00044932,120]
[418930170,1774567896189,-151.0,0.00044932,120]
[418930171,1774567896198,-188.008524,0.00044932,120]
[418930172,1774567896208,-170.542753,0.00044932,120]
[418930173,1774567896217,-170.542753,0.00044932,120]
[418930174,1774567896227,-170.542753,0.00044932,120]
[418930175,1774567896236,-170.542753,0.00044932,120]
[418930176,1774567896245,-170.542744,0.00044932,120]
[418930177,1774567896255,-151.0,0.00044932,120]
[418930178,1774567896264,-151.0,0.00044932,120]
[418930179,1774567896274,-151.0,0.00044932,120]
[418930180,1774567896283,-151.0,0.00044932,120]
[418930181,1774567896293,-151.0,0.00044932,120]
[418930182,1774567896303,-299.628091,0.00044932,120]
[418930183,1774567896313,-151.0,0.00044932,120]
[418930184,1774567896323,-189.330815,0.00044932,120]
[418930185,1774567896333,-154.301835,0.00044932,120]
[418930186,1774567896342,-151.0,0.00044932,120]
[418930187,1774567896352,-159.683347,0.00044932,120]
[418930188,1774567896362,-277.102485,0.00044932,120]
[418930189,1774567896371,-277.102485,0.00044932,120]
[418930190,1774567896380,-277.102485,0.00044932,120]
[418930191,1774567896390,-203.260158,0.00044932,120]
[418930192,1774567896399,-277.102485,0.00044932,120]
[418930193,1774567896408,-277.102485,0.00044932,120]
[418930194,1774567896418,-277.102485,0.00044932,120]
[418930195,1774567896428,-277.102485,0.00044932,120]
[418930196,1774567896438,-277.102485,0.00044932,120]
[418930197,1774567896447,-277.102485,0.00044932,120]
[418930198,1774567896456,-277.102485,0.00044932,120]
[418930199,1774567896466,-277.102485,0.00044932,120]
[418930200,1774567896476,-277.102485,0.00044932,120]
[418930201,1774567896486,-277.102485,0.00044932,120]
[418930202,1774567896495,-277.102485,0.00044932,120]
[418930203,1774567896504,-277.102485,0.00044932,120]
[418930204,1774567896514,-277.102485,0.00044932,120]
[418930205,1774567896523,-277.102485,0.00044932,120]
[418930206,1774567896533,-277.102485,0.00044932,120]
[418930207,1774567896542,-277.102485,0.00044932,120]
[418930208,1774567896551,-277.102477,0.00044932,120]
[418930209,1774567896561,-151.0,0.00044932,120]
[418930210,1774567896570,-170.52554,0.00044932,120]
[418930211,1774567896580,-421.025604,0.00044932,120]
[418930212,1774567896589,-421.025604,0.00044932,120]
[418930213,1774567896599,-421.025604,0.00044932,120]
[418930214,1774567896608,-421.025604,0.00044932,120]
[418930215,1774567896618,-421.025604,0.00044932,120]
[418930216,1774567896628,-421.025604,0.00044932,120]
[418930217,1774567896637,-421.025604,0.00044932,120]
[418930218,1774567896647,-421.025604,0.00044932,120]
[418930219,1774567896657,-421.025604,0.00044932,120]
[418930220,1774567896666,-421.025604,0.00044932,120]
[418930221,1774567896676,-421.025604,0.00044932,120]
[418930222,1774567896686,-421.025604,0.00044932,120]
[418930223,1774567896696,-421.025604,0.00044932,120]
[418930224,1774567896706,-421.025604,0.00044932,120]
[418930225,1774567896716,-421.025604,0.00044932,120]
[418930226,1774567896726,-421.025604,0.00044932,120]
[418930227,1774567896737,-449.964,0.00044932,120]
[418930228,1774567896748,-421.025604,0.00044932,120]
[418930229,1774567896759,-449.964,0.00044932,120]
[418930230,1774567896770,-421.025604,0.00044932,120]
[418930231,1774567896780,-449.964,0.00044932,120]
[418930232,1774567896788,-421.025604,0.00044932,120]
[418930233,1774567896799,-449.964,0.00044932,120]
[418930234,1774567896809,-421.025612,0.00044932,120]
[418930235,1774567896818,-449.964,0.00044932,120]
[418930236,1774567896827,-449.964,0.00044932,120]
[418930237,1774567896836,-449.964,0.00044932,120]
[418930238,1774567896845,-449.964,0.00044932,120]
[418930239,1774567896854,-449.964,0.00044932,120]
[418930240,1774567896865,-449.964,0.00044932,120]
[418930241,1774567896874,-449.964,0.00044932,120]
[418930242,1774567896883,-2100.82,0.00044932,120]
[418930243,1774567896892,-150.0,0.00044941,30]
[418930244,1774567896902,-150.0,0.00044941,30]
[418930245,1774567896911,-152.76356087,0.00044953,30]
[418930246,1774567896920,-364.90615692,0.00044953,30]
[418930247,1774567896930,-185.8894231,0.00044953,30]
[418930248,1774567896939,-1640.97,0.00044957,2]
[418930249,1774567896949,-205.0,0.0004496,30]
[418930250,1774567896959,-150.0,0.00044968,30]
[418930251,1774567896968,-150.0,0.00044978,30]
[418930252,1774567896977,-829.93,0.00044984,120]
[418930253,1774567896986,-2166.66,0.00044984,120]
[418930254,1774567896995,-2722.98,0.00044984,120]
[418930255,1774567897004,-1023.2,0.00044984,120]
[418930256,1774567897013,-498.57,0.00044984,120]
[418930257,1774567897023,-2622.17,0.00044984,120]
[418930258,1774567897032,-1190.0,0.00044984,120]
[418930259,1774567897041,-2610.84,0.00044984,120]
[418930260,1774567897050,-1379.59,0.00044984,120]
[418930261,1774567897059,-567.99,0.00044984,120]
[418930262,1774567897068,-2051.01,0.00044984,120]
[418930263,1774567897077,-2731.79,0.00044984,120]
[418930264,1774567897086,-1892.11,0.00044984,120]
[418930265,1774567897095,-328.32,0.00044984,120]
[418930266,1774567897104,-1676.58,0.00044984,120]
[418930267,1774567897114,-1836.65,0.00044984,120]
[418930268,1774567897123,-760.06,0.00044984,120]
[418930269,1774567897133,-2670.0,0.00044984,120]
[418930270,1774567897142,-2818.42,0.00044984,120]
[418930271,1774567897152,-2006.91,0.00044984,120]
[418930272,1774567897161,-2797.49,0.00044984,120]
[418930273,1774567897171,-352.73,0.00044984,120]
[418930274,1774567897180,-2089.37,0.00044984,120]
[418930275,1774567897190,-914.22,0.00044984,120]
[418930276,1774567897199,-1368.39,0.00044984,120]
[418930277,1774567897208,-2786.15,0.00044984,120]
[418930278,1774567897217,-2256.46,0.00044984,120]
[418930279,1774567897226,-758.94,0.00044984,120]
[418930280,1774567897235,-408.59,0.00044984,120]
[418930281,1774567897245,-2231.17,0.00044984,120]
[418930282,1774567897254,-885.84,0.00044984,120]
[418930283,1774567897264,-757.84,0.00044984,120]
[418930284,1774567897274,-1663.03,0.00044984,120]
[418930285,1774567897294,-2211.14,0.00044984,120]
[418930286,1774567897305,-150.0,0.00044992,30]
[418930287,1774567897316,-150.0,0.00044992,30]
[418930288,1774567897328,-500000.0,0.00044999,90]
[418930289,1774567897338,-6437.36656797,0.00045,120]
[418930290,1774567897348,-3000.0,0.00045,30]
[418930291,1774567897358,-35000.0,0.00045,30]
[418930292,1774567897368,-100659.98362159,0.00045,10]
[418930293,1774567897378,-3086.0,0.00045,120]
[418930294,1774567897388,-3000.0,0.00045,120]
[418930295,1774567897397,-3000.0,0.00045,120]
[418930296,1774567897407,-251.3443437,0.00045,2]
[418930297,1774567897416,-360834.21341744,0.00045,2]
[418930298,1774567897426,-504.55676709,0.00045,2]
[418930299,1774567897435,-28891.63402691,0.00045,30]
[418930300,1774567897445,-655.72344092,0.00045,2]
[418930301,1774567897455,-900000.0,0.00045,120]
[418930302,1774567897464,-99000.0,0.00045,120]
[418930303,1774567897475,-1000.0,0.00045,2]
[418930304,1774567897484,-10000.00000099,0.00045,120]
[418930305,1774567897494,-15517.38240152,0.00045,2]
[418930306,1774567897503,-151.57524457,0.00045,30]
[418930307,1774567897513,-8669.0,0.00045,120]
[418930308,1774567897522,-318.90468848,0.00045,120]
[418930309,1774567897532,-253.74755499,0.00045,90]
[418930310,1774567897541,-234.07503726,0.00045,30]
[418930311,1774567897551,-165.08055587,0.00045,30]
[418930312,1774567897561,-265.75610754,0.00045,120]
[418930313,1774567897570,-220.72243286,0.00045,30]
[418930314,1774567897579,-493.66435772,0.00045,120]
[418930315,1774567897589,-268.70994559,0.00045,30]
[418930316,1774567897597,-380.0,0.00045,3]
[418930317,1774567897607,-1001.48787334,0.00045,120]
[418930318,1774567897616,-7589.97739279,0.00045,120]
[418930319,1774567897627,-1394.0,0.00045,120]
[418930320,1774567897639,-5625.77258759,0.00045,120]
[418930321,1774567897648,-250.67271459,0.00045,5]
[418930322,1774567897659,-297.41918201,0.00045,120]
[418930323,1774567897668,-261.5148094,0.00045,120]
[418930324,1774567897677,-14847.0,0.00045,120]
[418930325,1774567897686,-389.82342236,0.00045,120]
[418930326,1774567897695,-351.52077067,0.00045,120]
[418930327,1774567897705,-601.1829447,0.00045,30]
[418930328,1774567897714,-170.67485206,0.00045,120]
[418930329,1774567897723,-155.4027925,0.00045,120]
[418930330,1774567897732,-201.91520305,0.00045,120]
[418930331,1774567897741,-193.17,0.00045,120]
[418930332,1774567897751,-2677.74347301,0.00045,120]
[418930333,1774567897763,-315.86720887,0.00045,120]
[418930334,1774567897774,-25542.6112051,0.00045,30]
[418930335,1774567897784,-524.54298638,0.00045,2]
[418930336,1774567897794,-1000.0,0.00045,120]
[418930337,1774567897804,-1006.24,0.00045,49]
[418930338,1774567897814,-1000.0,0.00045,30]
[418930339,1774567897825,-14881.2838041,0.00045,120]
[418930340,1774567897834,-7065.25,0.00045,120]
[418930341,1774567897843,-3943.08,0.00045,120]
[418930342,1774567897852,-50000.0,0.00045,120]
[418930343,1774567897863,-7127.0,0.00045,120]
[418930344,1774567897873,-254.37107872,0.00045,3]
[418930345,1774567897882,-246.31733644,0.00045,10]
[418930346,1774567897891,-350.0,0.00045,2]
[418930347,1774567897900,-162.0,0.00045,85]
[418930348,1774567897909,-159.380927,0.00045,60]
[418930349,1774567897919,-25000.0,0.00045,30]
[418930350,1774567897927,-10037.15924151,0.00045,60]
[418930351,1774567897937,-10000.0,0.00045,120]
[418930352,1774567897946,-371.12493153,0.00045,120]
[418930353,1774567897956,-608.93277912,0.00045,120]
[418930354,1774567897965,-5031.71706616,0.00045,61]
[418930355,1774567897974,-5000.0,0.00045,120]
[418930356,1774567897983,-174.0587,0.00045,120]
[418930357,1774567897992,-301025.0,0.00045,60]
[418930358,1774567898001,-500.0,0.00045,45]
[418930359,1774567898011,-189.9,0.00045,120]
[418930360,1774567898021,-1310.61,0.00045,120]
[418930361,1774567898031,-381.81,0.00045,120]
[418930362,1774567898040,-327.15,0.00045,120]
[418930363,1774567898050,-422.13,0.00045,120]
[418930364,1774567898059,-459.0,0.00045,30]
[418930365,1774567898069,-703.1,0.00045,120]
[418930366,1774567898079,-336.14,0.00045,120]
[418930367,1774567898090,-398.96,0.00045,120]
[418930368,1774567898099,-412.38,0.00045,120]
[418930369,1774567898109,-494.28412562,0.00045,120]
[418930370,1774567898118,-949.21598218,0.00045,120]
[418930371,1774567898128,-320.29304527,0.00045,120]
[418930372,1774567898138,-2810.79508768,0.00045,120]
[418930373,1774567898148,-640.8,0.00045,120]
[418930374,1774567898157,-156.60583463,0.00045,120]
[418930375,1774567898168,-157.91,0.00045,120]
[418930376,1774567898179,-67500.0,0.00045,30]
[418930377,1774567898188,-152.76356087,0.00045001,30]
[418930378,1774567898199,-364.90615692,0.00045001,30]
[418930379,1774567898209,-185.8894231,0.00045001,30]
[418930380,1774567898218,-150.0,0.00045035,30]
[418930381,1774567898228,-150.0,0.00045041,30]
[418930382,1774567898237,-150.0,0.00045042,30]
[418930383,1774567898247,-150.0,0.00045043,30]
[418930384,1774567898257,-150.0,0.00045043,30]
[418930385,1774567898266,-152.76356087,0.00045049,30]
[418930386,1774567898275,-364.90615692,0.00045049,30]
[418930387,1774567898285,-185.8894231,0.00045049,30]
[418930388,1774567898294,-150.0,0.00045049,30]
[418930389,1774567898304,-150.0,0.00045049,30]
[418930390,1774567898313,-156.87210559,0.00045062,2]
[418930391,1774567898323,-150.0,0.00045094,30]
[418930392,1774567898332,-150.0,0.00045094,30]
[418930393,1774567898341,-150.0,0.00045094,30]
[418930394,1774567898350,-152.76356087,0.00045096,30]
[418930395,1774567898360,-364.90615692,0.00045096,30]
[418930396,1774567898370,-185.8894231,0.00045096,30]
[418930397,1774567898379,-2000.0,0.000451,2]
[418930398,1774567898388,-150.0,0.00045105,30]
[418930399,1774567898398,-1094.5,0.0004511,120]
[418930400,1774567898407,-150.0,0.00045113,30]
[418930401,1774567898416,-210.40762625,0.00045122,120]
[418930402,1774567898426,-152.76356087,0.00045144,30]
[418930403,1774567898435,-364.90615692,0.00045144,30]
[418930404,1774567898445,-185.8894231,0.00045144,30]
[418930405,1774567898454,-151.0,0.00045144,60]
[418930406,1774567898463,-150.0,0.00045146,30]
[418930407,1774567898474,-150.0,0.00045146,30]
[418930408,1774567898484,-35181.52,0.00045153,14]
[418930409,1774567898494,-1897.09,0.00045153,14]
[418930410,1774567898504,-150.0,0.00045159,30]
[418930411,1774567898513,-150.0,0.00045169,30]
[418930412,1774567898522,-150.0,0.0004518,30]
[418930413,1774567898532,-150.0,0.00045186,30]
[418930414,1774567898541,-152.76356087,0.00045192,30]
[418930415,1774567898551,-364.90615692,0.00045192,30]
[418930416,1774567898561,-185.8894231,0.00045192,30]
[418930417,1774567898571,-150.0,0.00045197,30]
[418930418,1774567898580,-150.0,0.00045197,30]
[418930419,1774567898590,-92574.73119301,0.00045202,8]
[418930420,1774567898599,-92568.73119301,0.00045202,5]
[418930421,1774567898610,-500.0,0.00045205,120]
[418930422,1774567898620,-1000.0,0.00045205,2]
[418930423,1774567898629,-500.0,0.00045205,2]
[418930424,1774567898639,-150.0,0.00045205,2]
[418930425,1774567898648,-513.87572682,0.00045205,120]
[418930426,1774567898658,-500.0,0.00045205,120]
[418930427,1774567898667,-537.28,0.00045205,120]
[418930428,1774567898678,-2100.82,0.00045205,120]
[418930429,1774567898688,-488.18824668,0.00045206,30]
[418930430,1774567898697,-150.0,0.00045233,30]
[418930431,1774567898706,-152.76356087,0.00045239,30]
[418930432,1774567898912,-364.90615692,0.00045239,30]
[418930433,1774567898922,-185.8894231,0.00045239,30]
[418930434,1774567898932,-150.0,0.00045248,30]
[418930435,1774567898942,-150.0,0.00045248,30]
[418930436,1774567898953,-150.0,0.00045258,30]
[418930437,1774567898963,-150.0,0.00045258,30]